Department Family,Entity,Date,Expense Type,Expense Area,Supplier,Transaction Number,AP Amount,Description,Supplier Postcode,Purchase Invoice Number
Department of Health,NHS North East Lincolnshire CCG,11/30/2020,Clinical&Medical-Clinical Other,PATIENT TRANSPORT,THAMES AMBULANCE SERVICE LTD,34449601,"87,553.72",https://nww.einvoice-prod.sbs.nhs.uk:8179/invoicepdf/1c495c75-8217-5395-a387-a28c389310f0,LN6 3AH,22070
Department of Health,NHS North East Lincolnshire CCG,11/30/2020,Clinical&Medical-Clinical Other,PATIENT TRANSPORT,THAMES AMBULANCE SERVICE LTD,34449606,"28,302.56",https://nww.einvoice-prod.sbs.nhs.uk:8179/invoicepdf/134fb9cc-bec6-51ee-93ee-5a39e926f3fa,LN6 3AH,22072
Department of Health,NHS North East Lincolnshire CCG,11/30/2020,C&M-PMS Prem Actual Rent,PRC DELEGATED CO-COMMISSIONING,CARE PLUS GROUP LTD,34449672,"-42,501.00",https://nww.einvoice-prod.sbs.nhs.uk:8179/invoicepdf/f67e5995-ccb8-5933-84d7-8d95eb4cb55c,DN32 7DH,1358
Department of Health,NHS North East Lincolnshire CCG,11/30/2020,Clinical&Medical-Commercial Sector,PLANNED CARE,360 CARE LTD,34468872,"32,571.00",https://nww.einvoice-prod.sbs.nhs.uk:8179/invoicepdf/9fd1668e-a7c3-5880-9dc6-1b816a1c4672,DN31 2BH,36163
Department of Health,NHS North East Lincolnshire CCG,11/30/2020,Clinical&Medical-Othe Public Sector,CHILD AND ADOLESCENT MENTAL HEALTH,NORTH EAST LINCOLNSHIRE COUNCIL,34484869,"72,392.00",,DN31 1HU,S1723457
Department of Health,NHS North East Lincolnshire CCG,11/30/2020,Clinical&Medical-Commercial Sector,LEARNING DIFFICULTIES,ELYSIUM HEALTHCARE LTD,34484880,"42,687.31",https://nww.einvoice-prod.sbs.nhs.uk:8179/invoicepdf/1e5f5b2a-d1d9-5918-b18a-5f1a80dd8110,WD6 1JN,HLH00824
Department of Health,NHS North East Lincolnshire CCG,11/30/2020,Clinical&Medical-Not For Profit,MENTAL HEALTH CONTRACTS,NAVIGO,34494231,"27,517.00",https://nww.einvoice-prod.sbs.nhs.uk:8179/invoicepdf/737902c2-d6a0-5b87-b097-32d312064ead,DN32 0QE,SALINV5920
Department of Health,NHS North East Lincolnshire CCG,11/30/2020,Clinical&Medical-Voluntary Sector,PROGRAMME PROJECTS,NORTH BANK FORUM,34494242,"25,000.00",,HU3 2LL,SI686
Department of Health,NHS North East Lincolnshire CCG,11/30/2020,Clinical&Medical-Independent Sector,PLANNED CARE,HS PHYSIOTHERAPY LTD,34511296,"25,040.00",https://nww.einvoice-prod.sbs.nhs.uk:8179/invoicepdf/a72c8591-4c44-50bc-a225-e87ad392a85f,PE21 7TW,HSNEL1020
Department of Health,NHS North East Lincolnshire CCG,11/30/2020,C&M-PMS Out of Hours Opt Outs,PRC DELEGATED CO-COMMISSIONING,BEACON MEDICAL,34515880,"-4,949.14",APMOOH,DN35 8EB,KHU000041372
Department of Health,NHS North East Lincolnshire CCG,11/30/2020,ME - PMS GP Prior Year ERs,PRC DELEGATED CO-COMMISSIONING,BEACON MEDICAL,34515880,"-14,260.25",PRYERP,DN35 8EB,KHU000041372
Department of Health,NHS North East Lincolnshire CCG,11/30/2020,ME-PMS GP Pension EEs-PMS,PRC DELEGATED CO-COMMISSIONING,BEACON MEDICAL,34515880,"-6,884.17",SUPCEE,DN35 8EB,KHU000041372
Department of Health,NHS North East Lincolnshire CCG,11/30/2020,ME-PMS GP Pension ERs Adjs - PMS,PRC DELEGATED CO-COMMISSIONING,BEACON MEDICAL,34515880,"-6,926.37",SUPCER,DN35 8EB,KHU000041372
Department of Health,NHS North East Lincolnshire CCG,11/30/2020,ME-PMS GP Prior Year EEs,PRC DELEGATED CO-COMMISSIONING,BEACON MEDICAL,34515880,"-15,260.13",PRYEEP,DN35 8EB,KHU000041372
Department of Health,NHS North East Lincolnshire CCG,11/30/2020,C&M-PMS Contract Value,PRC DELEGATED CO-COMMISSIONING,BEACON MEDICAL,34515881,"102,173.04",BABALP,DN35 8EB,KHU000041373
Department of Health,NHS North East Lincolnshire CCG,11/30/2020,C&M-PMS List Size Adjustment,PRC DELEGATED CO-COMMISSIONING,BEACON MEDICAL,34515881,"1,537.10",LISTAP,DN35 8EB,KHU000041373
Department of Health,NHS North East Lincolnshire CCG,11/30/2020,C&M-PMS PCN DES Participation,PRC DELEGATED CO-COMMISSIONING,BEACON MEDICAL,34515881,"1,928.45",PARTIP,DN35 8EB,KHU000041373
Department of Health,NHS North East Lincolnshire CCG,11/30/2020,C&M-PMS PCO Other,PRC DELEGATED CO-COMMISSIONING,BEACON MEDICAL,34515881,741.30,CQCRP,DN35 8EB,KHU000041373
Department of Health,NHS North East Lincolnshire CCG,11/30/2020,C&M-PMS Prem Rates,PRC DELEGATED CO-COMMISSIONING,BEACON MEDICAL,34515881,"1,313.00",RANDRP,DN35 8EB,KHU000041373
Department of Health,NHS North East Lincolnshire CCG,11/30/2020,C&M-PMS QOF Aspiration,PRC DELEGATED CO-COMMISSIONING,BEACON MEDICAL,34515881,"10,941.21",QUASPP,DN35 8EB,KHU000041373
Department of Health,NHS North East Lincolnshire CCG,11/30/2020,C&M-PMS Contract Value,PRC DELEGATED CO-COMMISSIONING,DR GG DE & PARTNERS,34515892,"34,220.45",BABALP,DN312BH,KHU000041377
Department of Health,NHS North East Lincolnshire CCG,11/30/2020,C&M-PMS List Size Adjustment,PRC DELEGATED CO-COMMISSIONING,DR GG DE & PARTNERS,34515892,923.15,LISTAP,DN312BH,KHU000041377
Department of Health,NHS North East Lincolnshire CCG,11/30/2020,C&M-PMS PCN DES Participation,PRC DELEGATED CO-COMMISSIONING,DR GG DE & PARTNERS,34515892,645.89,PARTIP,DN312BH,KHU000041377
Department of Health,NHS North East Lincolnshire CCG,11/30/2020,C&M-PMS Prem Rates,PRC DELEGATED CO-COMMISSIONING,DR GG DE & PARTNERS,34515892,"1,388.00",RANDRP,DN312BH,KHU000041377
Department of Health,NHS North East Lincolnshire CCG,11/30/2020,C&M-PMS QOF Aspiration,PRC DELEGATED CO-COMMISSIONING,DR GG DE & PARTNERS,34515892,"3,555.36",QUASPP,DN312BH,KHU000041377
Department of Health,NHS North East Lincolnshire CCG,11/30/2020,C&M-PMS DES Extended Hours Access,PRC DELEGATED CO-COMMISSIONING,DR R MATHEWS,34515897,"-11,358.33",EXTHDP,DN313AE,KHU000041380
Department of Health,NHS North East Lincolnshire CCG,11/30/2020,C&M-PMS List Size Adjustment,PRC DELEGATED CO-COMMISSIONING,DR R MATHEWS,34515897,-48.05,LISTAP,DN313AE,KHU000041380
Department of Health,NHS North East Lincolnshire CCG,11/30/2020,C&M-PMS Out of Hours Opt Outs,PRC DELEGATED CO-COMMISSIONING,DR R MATHEWS,34515897,"-1,603.66",APMOOH,DN313AE,KHU000041380
Department of Health,NHS North East Lincolnshire CCG,11/30/2020,C&M-PMS PCN DES Clinical Director,PRC DELEGATED CO-COMMISSIONING,DR R MATHEWS,34515897,"-5,655.67",CLINDP,DN313AE,KHU000041380
Department of Health,NHS North East Lincolnshire CCG,11/30/2020,C&M-PMS PCN DES PCN support,LOCAL ENHANCED SERVICES,DR R MATHEWS,34515897,"-11,750.00",PCNSUP,DN313AE,KHU000041380
Department of Health,NHS North East Lincolnshire CCG,11/30/2020,ME-PMS GP Pension EEs-PMS,PRC DELEGATED CO-COMMISSIONING,DR R MATHEWS,34515897,"-5,437.50",SUPCEE,DN313AE,KHU000041380
Department of Health,NHS North East Lincolnshire CCG,11/30/2020,ME-PMS GP Pension ERs Adjs - PMS,PRC DELEGATED CO-COMMISSIONING,DR R MATHEWS,34515897,"-5,392.50",SUPCER,DN313AE,KHU000041380
Department of Health,NHS North East Lincolnshire CCG,11/30/2020,C&M- PCN DES CARE HOME PREMIUM,PRC DELEGATED CO-COMMISSIONING,DR R MATHEWS,34515899,"6,750.00",CHOMPP,DN313AE,KHU000041381
Department of Health,NHS North East Lincolnshire CCG,11/30/2020,C&M-PMS Contract Value,PRC DELEGATED CO-COMMISSIONING,DR R MATHEWS,34515899,"33,653.00",BABALP,DN313AE,KHU000041381
Department of Health,NHS North East Lincolnshire CCG,11/30/2020,C&M-PMS DES Extended Hours Access,PRC DELEGATED CO-COMMISSIONING,DR R MATHEWS,34515899,"22,716.66",EXTHDP,DN313AE,KHU000041381
Department of Health,NHS North East Lincolnshire CCG,11/30/2020,C&M-PMS PCN DES Clinical Director,PRC DELEGATED CO-COMMISSIONING,DR R MATHEWS,34515899,"11,311.34",CLINDP,DN313AE,KHU000041381
Department of Health,NHS North East Lincolnshire CCG,11/30/2020,C&M-PMS PCN DES PCN support,LOCAL ENHANCED SERVICES,DR R MATHEWS,34515899,"23,500.00",PCNSUP,DN313AE,KHU000041381
Department of Health,NHS North East Lincolnshire CCG,11/30/2020,C&M-PMS PCN DES Participation,PRC DELEGATED CO-COMMISSIONING,DR R MATHEWS,34515899,635.18,PARTIP,DN313AE,KHU000041381
Department of Health,NHS North East Lincolnshire CCG,11/30/2020,C&M-PMS PCO Other,PRC DELEGATED CO-COMMISSIONING,DR R MATHEWS,34515899,297.60,CQCRP,DN313AE,KHU000041381
Department of Health,NHS North East Lincolnshire CCG,11/30/2020,C&M-PMS Prem Rates,PRC DELEGATED CO-COMMISSIONING,DR R MATHEWS,34515899,906.00,RANDRP,DN313AE,KHU000041381
Department of Health,NHS North East Lincolnshire CCG,11/30/2020,C&M-PMS QOF Aspiration,PRC DELEGATED CO-COMMISSIONING,DR R MATHEWS,34515899,"3,118.15",QUASPP,DN313AE,KHU000041381
Department of Health,NHS North East Lincolnshire CCG,11/30/2020,C&M- PCN DES CARE HOME PREMIUM,PRC DELEGATED CO-COMMISSIONING,HUMBERVIEW SURGERY,34515904,"2,625.00",CHOMPA,DN313AE,KHU000041383
Department of Health,NHS North East Lincolnshire CCG,11/30/2020,C&M-APMS Contract Value,PRC DELEGATED CO-COMMISSIONING,HUMBERVIEW SURGERY,34515904,"15,482.82",APMADD,DN313AE,KHU000041383
Department of Health,NHS North East Lincolnshire CCG,11/30/2020,C&M-APMS DES Extended Hours Access,PRC DELEGATED CO-COMMISSIONING,HUMBERVIEW SURGERY,34515904,"4,735.34",ZEXTA,DN313AE,KHU000041383
Department of Health,NHS North East Lincolnshire CCG,11/30/2020,C&M-APMS List Size Adjustment,PRC DELEGATED CO-COMMISSIONING,HUMBERVIEW SURGERY,34515904,612.70,LISTAA,DN313AE,KHU000041383
Department of Health,NHS North East Lincolnshire CCG,11/30/2020,C&M-APMS PCN DES Clinical Director,PRC DELEGATED CO-COMMISSIONING,HUMBERVIEW SURGERY,34515904,"2,357.87",CLINDA,DN313AE,KHU000041383
Department of Health,NHS North East Lincolnshire CCG,11/30/2020,C&M-APMS PCN DES PCN support,LOCAL ENHANCED SERVICES,HUMBERVIEW SURGERY,34515904,"4,898.63",PCNSUA,DN313AE,KHU000041383
Department of Health,NHS North East Lincolnshire CCG,11/30/2020,C&M-APMS PCO Other,PRC DELEGATED CO-COMMISSIONING,HUMBERVIEW SURGERY,34515904,160.80,CQCRA,DN313AE,KHU000041383
Department of Health,NHS North East Lincolnshire CCG,11/30/2020,C&M-APMS Prem Rates,PRC DELEGATED CO-COMMISSIONING,HUMBERVIEW SURGERY,34515904,399.00,RANDRA,DN313AE,KHU000041383
Department of Health,NHS North East Lincolnshire CCG,11/30/2020,C&M-PMS DES Extended Hours Access,PRC DELEGATED CO-COMMISSIONING,HUMBERVIEW SURGERY,34515904,"4,741.87",EXTHDP,DN313AE,KHU000041383
Department of Health,NHS North East Lincolnshire CCG,11/30/2020,C&M-PMS PCN DES Clinical Director,PRC DELEGATED CO-COMMISSIONING,HUMBERVIEW SURGERY,34515904,"2,351.34",CLINDP,DN313AE,KHU000041383
Department of Health,NHS North East Lincolnshire CCG,11/30/2020,C&M-PMS PCN DES PCN support,LOCAL ENHANCED SERVICES,HUMBERVIEW SURGERY,34515904,"4,898.63",PCNSUP,DN313AE,KHU000041383
Department of Health,NHS North East Lincolnshire CCG,11/30/2020,C&M-PMS PCN DES Participation,PRC DELEGATED CO-COMMISSIONING,HUMBERVIEW SURGERY,34515904,292.23,PARTIP,DN313AE,KHU000041383
Department of Health,NHS North East Lincolnshire CCG,11/30/2020,C&M-PMS QOF Aspiration,PRC DELEGATED CO-COMMISSIONING,HUMBERVIEW SURGERY,34515904,"1,561.55",QUASPP,DN313AE,KHU000041383
Department of Health,NHS North East Lincolnshire CCG,11/30/2020,C&M-PMS Contract Value,PRC DELEGATED CO-COMMISSIONING,LITTLEFIELD,34515910,"42,845.17",BABALP,DN34 4GB,KHU000041385
Department of Health,NHS North East Lincolnshire CCG,11/30/2020,C&M-PMS List Size Adjustment,PRC DELEGATED CO-COMMISSIONING,LITTLEFIELD,34515910,870.58,LISTAP,DN34 4GB,KHU000041385
Department of Health,NHS North East Lincolnshire CCG,11/30/2020,C&M-PMS PCN DES Participation,PRC DELEGATED CO-COMMISSIONING,LITTLEFIELD,34515910,808.68,PARTIP,DN34 4GB,KHU000041385
Department of Health,NHS North East Lincolnshire CCG,11/30/2020,C&M-PMS PCO Other,PRC DELEGATED CO-COMMISSIONING,LITTLEFIELD,34515910,361.00,CQCRP,DN34 4GB,KHU000041385
Department of Health,NHS North East Lincolnshire CCG,11/30/2020,C&M-PMS QOF Aspiration,PRC DELEGATED CO-COMMISSIONING,LITTLEFIELD,34515910,"3,947.82",QUASPP,DN34 4GB,KHU000041385
Department of Health,NHS North East Lincolnshire CCG,11/30/2020,C&M-PMS Contract Value,PRC DELEGATED CO-COMMISSIONING,RAJ MEDICAL CENTRE,34515912,"47,909.54",BABALP,DN34 5LP,KHU000041387
Department of Health,NHS North East Lincolnshire CCG,11/30/2020,C&M-PMS List Size Adjustment,PRC DELEGATED CO-COMMISSIONING,RAJ MEDICAL CENTRE,34515912,400.95,LISTAP,DN34 5LP,KHU000041387
Department of Health,NHS North East Lincolnshire CCG,11/30/2020,C&M-PMS PCN DES Participation,PRC DELEGATED CO-COMMISSIONING,RAJ MEDICAL CENTRE,34515912,"1,806.99",PARTIP,DN34 5LP,KHU000041387
Department of Health,NHS North East Lincolnshire CCG,11/30/2020,C&M-PMS Prem Rates,PRC DELEGATED CO-COMMISSIONING,RAJ MEDICAL CENTRE,34515912,"2,637.00",RANDRP,DN34 5LP,KHU000041387
Department of Health,NHS North East Lincolnshire CCG,11/30/2020,C&M-PMS QOF Aspiration,PRC DELEGATED CO-COMMISSIONING,RAJ MEDICAL CENTRE,34515912,"4,996.39",QUASPP,DN34 5LP,KHU000041387
Department of Health,NHS North East Lincolnshire CCG,11/30/2020,C&M-APMS Contract Value,PRC DELEGATED CO-COMMISSIONING,QUAYSIDE OPEN ACCESS CENTRE,34515914,"22,070.42",APMADD,DN313EF,KHU000041388
Department of Health,NHS North East Lincolnshire CCG,11/30/2020,C&M-APMS List Size Adjustment,PRC DELEGATED CO-COMMISSIONING,QUAYSIDE OPEN ACCESS CENTRE,34515914,90.19,LISTAA,DN313EF,KHU000041388
Department of Health,NHS North East Lincolnshire CCG,11/30/2020,C&M-APMS PCO Other,PRC DELEGATED CO-COMMISSIONING,QUAYSIDE OPEN ACCESS CENTRE,34515914,"2,212.00",CQCRA,DN313EF,KHU000041388
Department of Health,NHS North East Lincolnshire CCG,11/30/2020,C&M-PMS PCN DES Participation,PRC DELEGATED CO-COMMISSIONING,QUAYSIDE OPEN ACCESS CENTRE,34515914,416.57,PARTIP,DN313EF,KHU000041388
Department of Health,NHS North East Lincolnshire CCG,11/30/2020,C&M-PMS QOF Aspiration,PRC DELEGATED CO-COMMISSIONING,QUAYSIDE OPEN ACCESS CENTRE,34515914,"1,628.61",QUASPP,DN313EF,KHU000041388
Department of Health,NHS North East Lincolnshire CCG,11/30/2020,C&M-PMS DES Extended Hours Access,PRC DELEGATED CO-COMMISSIONING,ROXTON PRACTICE,34515917,"-4,487.87",EXTHDP,DN40 1JW,KHU000041389
Department of Health,NHS North East Lincolnshire CCG,11/30/2020,C&M-PMS Out of Hours Opt Outs,PRC DELEGATED CO-COMMISSIONING,ROXTON PRACTICE,34515917,"-12,119.98",APMOOH,DN40 1JW,KHU000041389
Department of Health,NHS North East Lincolnshire CCG,11/30/2020,C&M-PMS PCN DES Clinical Director,PRC DELEGATED CO-COMMISSIONING,ROXTON PRACTICE,34515917,"-2,234.65",CLINDP,DN40 1JW,KHU000041389
Department of Health,NHS North East Lincolnshire CCG,11/30/2020,C&M-PMS PCN DES PCN support,LOCAL ENHANCED SERVICES,ROXTON PRACTICE,34515917,"-4,642.63",PCNSUP,DN40 1JW,KHU000041389
Department of Health,NHS North East Lincolnshire CCG,11/30/2020,C&M-PMS PCO Locum Adop/Pat/Mat,PRC DELEGATED CO-COMMISSIONING,ROXTON PRACTICE,34515917,-61.00,SICKC,DN40 1JW,KHU000041389
Department of Health,NHS North East Lincolnshire CCG,11/30/2020,ME - PMS TPS Added Years Adj EEs,PRC DELEGATED CO-COMMISSIONING,ROXTON PRACTICE,34515917,-434.88,URLS,DN40 1JW,KHU000041389
Department of Health,NHS North East Lincolnshire CCG,11/30/2020,ME-PMS GP Pension AVCs,PRC DELEGATED CO-COMMISSIONING,ROXTON PRACTICE,34515917,"-3,044.16",PENAVP,DN40 1JW,KHU000041389
Department of Health,NHS North East Lincolnshire CCG,11/30/2020,ME-PMS GP Pension EEs Adjs - PMS,PRC DELEGATED CO-COMMISSIONING,ROXTON PRACTICE,34515917,"-59,648.75",PENEEP,DN40 1JW,KHU000041389
Department of Health,NHS North East Lincolnshire CCG,11/30/2020,ME-PMS GP Pension EEs-PMS,PRC DELEGATED CO-COMMISSIONING,ROXTON PRACTICE,34515917,"-18,375.00",SUPCEE,DN40 1JW,KHU000041389
Department of Health,NHS North East Lincolnshire CCG,11/30/2020,ME-PMS GP Pension ERs Adjs - PMS,PRC DELEGATED CO-COMMISSIONING,ROXTON PRACTICE,34515917,"-78,188.75","SUPCER,PENERP",DN40 1JW,KHU000041389
Department of Health,NHS North East Lincolnshire CCG,11/30/2020,C&M-APMS Contract Value,PRC DELEGATED CO-COMMISSIONING,OPEN DOOR,34515919,"33,687.18",APMADD,DN32 7DL,KHU000041391
Department of Health,NHS North East Lincolnshire CCG,11/30/2020,C&M-APMS List Size Adjustment,PRC DELEGATED CO-COMMISSIONING,OPEN DOOR,34515919,"1,165.06",LISTAA,DN32 7DL,KHU000041391
Department of Health,NHS North East Lincolnshire CCG,11/30/2020,C&M-APMS PCO Other,PRC DELEGATED CO-COMMISSIONING,OPEN DOOR,34515919,"1,513.00",CQCRA,DN32 7DL,KHU000041391
Department of Health,NHS North East Lincolnshire CCG,11/30/2020,C&M-APMS Prem Water Rates,PRC DELEGATED CO-COMMISSIONING,OPEN DOOR,34515919,387.61,RAMWA,DN32 7DL,KHU000041391
Department of Health,NHS North East Lincolnshire CCG,11/30/2020,C&M-APMS QOF Aspiration,PRC DELEGATED CO-COMMISSIONING,OPEN DOOR,34515919,68.07,ASPIRA,DN32 7DL,KHU000041391
Department of Health,NHS North East Lincolnshire CCG,11/30/2020,C&M-PMS PCN DES Participation,PRC DELEGATED CO-COMMISSIONING,OPEN DOOR,34515919,244.50,PARTIP,DN32 7DL,KHU000041391
Department of Health,NHS North East Lincolnshire CCG,11/30/2020,C&M-PMS QOF Aspiration,PRC DELEGATED CO-COMMISSIONING,OPEN DOOR,34515919,"1,086.62",QUASPP,DN32 7DL,KHU000041391
Department of Health,NHS North East Lincolnshire CCG,11/30/2020,C&M-PMS Contract Value,PRC DELEGATED CO-COMMISSIONING,DR AP KUMAR,34515923,"29,696.83",BABALP,DN31 3AE,KHU000041395
Department of Health,NHS North East Lincolnshire CCG,11/30/2020,C&M-PMS DES Learn Dsblty Hlth Chk,PRC DELEGATED CO-COMMISSIONING,DR AP KUMAR,34515923,280.00,LEARNP,DN31 3AE,KHU000041395
Department of Health,NHS North East Lincolnshire CCG,11/30/2020,C&M-PMS PCN DES Participation,PRC DELEGATED CO-COMMISSIONING,DR AP KUMAR,34515923,560.51,PARTIP,DN31 3AE,KHU000041395
Department of Health,NHS North East Lincolnshire CCG,11/30/2020,C&M-PMS PCO Locum Sickness,PRC DELEGATED CO-COMMISSIONING,DR AP KUMAR,34515923,"1,322.45",SICKS,DN31 3AE,KHU000041395
Department of Health,NHS North East Lincolnshire CCG,11/30/2020,C&M-PMS PCO Other,PRC DELEGATED CO-COMMISSIONING,DR AP KUMAR,34515923,252.20,CQCRP,DN31 3AE,KHU000041395
Department of Health,NHS North East Lincolnshire CCG,11/30/2020,C&M-PMS Prem Rates,PRC DELEGATED CO-COMMISSIONING,DR AP KUMAR,34515923,747.00,RANDRP,DN31 3AE,KHU000041395
Department of Health,NHS North East Lincolnshire CCG,11/30/2020,C&M-PMS QOF Aspiration,PRC DELEGATED CO-COMMISSIONING,DR AP KUMAR,34515923,"3,076.63",QUASPP,DN31 3AE,KHU000041395
Department of Health,NHS North East Lincolnshire CCG,11/30/2020,C&M-PMS Contract Value,PRC DELEGATED CO-COMMISSIONING,CLEE MEDICAL CENTRE,34515925,"115,232.51",BABALP,DN35 7XE,KHU000041397
Department of Health,NHS North East Lincolnshire CCG,11/30/2020,C&M-PMS DES Learn Dsblty Hlth Chk,PRC DELEGATED CO-COMMISSIONING,CLEE MEDICAL CENTRE,34515925,140.00,LEARNP,DN35 7XE,KHU000041397
Department of Health,NHS North East Lincolnshire CCG,11/30/2020,C&M-PMS List Size Adjustment,PRC DELEGATED CO-COMMISSIONING,CLEE MEDICAL CENTRE,34515925,641.76,LISTAP,DN35 7XE,KHU000041397
Department of Health,NHS North East Lincolnshire CCG,11/30/2020,C&M-PMS PCN DES Participation,PRC DELEGATED CO-COMMISSIONING,CLEE MEDICAL CENTRE,34515925,"2,174.94",PARTIP,DN35 7XE,KHU000041397
Department of Health,NHS North East Lincolnshire CCG,11/30/2020,C&M-PMS PCO Other,PRC DELEGATED CO-COMMISSIONING,CLEE MEDICAL CENTRE,34515925,861.60,CQCRP,DN35 7XE,KHU000041397
Department of Health,NHS North East Lincolnshire CCG,11/30/2020,C&M-PMS Prem Rates,PRC DELEGATED CO-COMMISSIONING,CLEE MEDICAL CENTRE,34515925,"1,565.00",RANDRP,DN35 7XE,KHU000041397
Department of Health,NHS North East Lincolnshire CCG,11/30/2020,C&M-PMS Prem Water Rates,PRC DELEGATED CO-COMMISSIONING,CLEE MEDICAL CENTRE,34515925,437.85,RAMWP,DN35 7XE,KHU000041397
Department of Health,NHS North East Lincolnshire CCG,11/30/2020,C&M-PMS QOF Aspiration,PRC DELEGATED CO-COMMISSIONING,CLEE MEDICAL CENTRE,34515925,"14,074.83",QUASPP,DN35 7XE,KHU000041397
Department of Health,NHS North East Lincolnshire CCG,11/30/2020,C&M-PMS Contract Value,PRC DELEGATED CO-COMMISSIONING,CHANTRY HEALTH GROUP,34515927,"51,586.02",BABALP,DN31 1QZ,KHU000041399
Department of Health,NHS North East Lincolnshire CCG,11/30/2020,C&M-PMS List Size Adjustment,PRC DELEGATED CO-COMMISSIONING,CHANTRY HEALTH GROUP,34515927,123.13,LISTAP,DN31 1QZ,KHU000041399
Department of Health,NHS North East Lincolnshire CCG,11/30/2020,C&M-PMS PCN DES Participation,PRC DELEGATED CO-COMMISSIONING,CHANTRY HEALTH GROUP,34515927,973.65,PARTIP,DN31 1QZ,KHU000041399
Department of Health,NHS North East Lincolnshire CCG,11/30/2020,C&M-PMS Prem Rates,PRC DELEGATED CO-COMMISSIONING,CHANTRY HEALTH GROUP,34515927,"2,270.00",RANDRP,DN31 1QZ,KHU000041399
Department of Health,NHS North East Lincolnshire CCG,11/30/2020,C&M-PMS QOF Aspiration,PRC DELEGATED CO-COMMISSIONING,CHANTRY HEALTH GROUP,34515927,"5,570.92",QUASPP,DN31 1QZ,KHU000041399
Department of Health,NHS North East Lincolnshire CCG,11/30/2020,C&M-PMS Contract Value,PRC DELEGATED CO-COMMISSIONING,DR OZ QURESHI,34515929,"33,169.26",BABALP,DN35 0LN,KHU000041401
Department of Health,NHS North East Lincolnshire CCG,11/30/2020,C&M-PMS List Size Adjustment,PRC DELEGATED CO-COMMISSIONING,DR OZ QURESHI,34515929,842.55,LISTAP,DN35 0LN,KHU000041401
Department of Health,NHS North East Lincolnshire CCG,11/30/2020,C&M-PMS PCN DES Participation,PRC DELEGATED CO-COMMISSIONING,DR OZ QURESHI,34515929,626.05,PARTIP,DN35 0LN,KHU000041401
Department of Health,NHS North East Lincolnshire CCG,11/30/2020,C&M-PMS PCO Other,PRC DELEGATED CO-COMMISSIONING,DR OZ QURESHI,34515929,269.80,CQCRP,DN35 0LN,KHU000041401
Department of Health,NHS North East Lincolnshire CCG,11/30/2020,C&M-PMS QOF Aspiration,PRC DELEGATED CO-COMMISSIONING,DR OZ QURESHI,34515929,"3,736.33",QUASPP,DN35 0LN,KHU000041401
Department of Health,NHS North East Lincolnshire CCG,11/30/2020,C&M-PMS Contract Value,PRC DELEGATED CO-COMMISSIONING,LYNTON PRACTICE LTD,34515935,"35,551.87",BABALP,DN35 0LN,KHU000041407
Department of Health,NHS North East Lincolnshire CCG,11/30/2020,C&M-PMS List Size Adjustment,PRC DELEGATED CO-COMMISSIONING,LYNTON PRACTICE LTD,34515935,"1,821.23",LISTAP,DN35 0LN,KHU000041407
Department of Health,NHS North East Lincolnshire CCG,11/30/2020,C&M-PMS PCN DES Participation,PRC DELEGATED CO-COMMISSIONING,LYNTON PRACTICE LTD,34515935,671.02,PARTIP,DN35 0LN,KHU000041407
Department of Health,NHS North East Lincolnshire CCG,11/30/2020,C&M-PMS QOF Aspiration,PRC DELEGATED CO-COMMISSIONING,LYNTON PRACTICE LTD,34515935,"3,888.62",QUASPP,DN35 0LN,KHU000041407
Department of Health,NHS North East Lincolnshire CCG,11/30/2020,C&M-PMS Contract Value,PRC DELEGATED CO-COMMISSIONING,SCARTHO MEDICAL CENTRE,34515937,"106,103.97",BABALP,DN33 3JF,KHU000041409
Department of Health,NHS North East Lincolnshire CCG,11/30/2020,C&M-PMS List Size Adjustment,PRC DELEGATED CO-COMMISSIONING,SCARTHO MEDICAL CENTRE,34515937,25.24,LISTAP,DN33 3JF,KHU000041409
Department of Health,NHS North East Lincolnshire CCG,11/30/2020,C&M-PMS PCN DES Participation,PRC DELEGATED CO-COMMISSIONING,SCARTHO MEDICAL CENTRE,34515937,"2,002.65",PARTIP,DN33 3JF,KHU000041409
Department of Health,NHS North East Lincolnshire CCG,11/30/2020,C&M-PMS Prem Rates,PRC DELEGATED CO-COMMISSIONING,SCARTHO MEDICAL CENTRE,34515937,"3,482.00",RANDRP,DN33 3JF,KHU000041409
Department of Health,NHS North East Lincolnshire CCG,11/30/2020,C&M-PMS QOF Aspiration,PRC DELEGATED CO-COMMISSIONING,SCARTHO MEDICAL CENTRE,34515937,"12,106.48",QUASPP,DN33 3JF,KHU000041409
Department of Health,NHS North East Lincolnshire CCG,11/30/2020,C&M-PMS Contract Value,PRC DELEGATED CO-COMMISSIONING,GREENLAND SURGERY,34515938,"21,808.89",BABALP,DN31 3AE,KHU000041411
Department of Health,NHS North East Lincolnshire CCG,11/30/2020,C&M-PMS List Size Adjustment,PRC DELEGATED CO-COMMISSIONING,GREENLAND SURGERY,34515938,326.80,LISTAP,DN31 3AE,KHU000041411
Department of Health,NHS North East Lincolnshire CCG,11/30/2020,C&M-PMS PCN DES Participation,PRC DELEGATED CO-COMMISSIONING,GREENLAND SURGERY,34515938,411.63,PARTIP,DN31 3AE,KHU000041411
Department of Health,NHS North East Lincolnshire CCG,11/30/2020,C&M-PMS Prem Rates,PRC DELEGATED CO-COMMISSIONING,GREENLAND SURGERY,34515938,734.00,RANDRP,DN31 3AE,KHU000041411
Department of Health,NHS North East Lincolnshire CCG,11/30/2020,C&M-PMS QOF Aspiration,PRC DELEGATED CO-COMMISSIONING,GREENLAND SURGERY,34515938,"1,986.58",QUASPP,DN31 3AE,KHU000041411
Department of Health,NHS North East Lincolnshire CCG,11/30/2020,C&M-PMS Contract Value,PRC DELEGATED CO-COMMISSIONING,WOODFORD MEDICAL CENTRE,34515942,"77,310.42",BABALP,DN34 4GB,KHU000041415
Department of Health,NHS North East Lincolnshire CCG,11/30/2020,C&M-PMS List Size Adjustment,PRC DELEGATED CO-COMMISSIONING,WOODFORD MEDICAL CENTRE,34515942,"1,618.73",LISTAP,DN34 4GB,KHU000041415
Department of Health,NHS North East Lincolnshire CCG,11/30/2020,C&M-PMS PCN DES Participation,PRC DELEGATED CO-COMMISSIONING,WOODFORD MEDICAL CENTRE,34515942,"1,459.19",PARTIP,DN34 4GB,KHU000041415
Department of Health,NHS North East Lincolnshire CCG,11/30/2020,C&M-PMS QOF Aspiration,PRC DELEGATED CO-COMMISSIONING,WOODFORD MEDICAL CENTRE,34515942,"7,718.61",QUASPP,DN34 4GB,KHU000041415
Department of Health,NHS North East Lincolnshire CCG,11/30/2020,C&M-PMS Contract Value,PRC DELEGATED CO-COMMISSIONING,BIRKWOOD MEDICAL CENTRE,34515944,"68,730.32",BABALP,DN34 5DX,KHU000041417
Department of Health,NHS North East Lincolnshire CCG,11/30/2020,C&M-PMS DES Learn Dsblty Hlth Chk,PRC DELEGATED CO-COMMISSIONING,BIRKWOOD MEDICAL CENTRE,34515944,140.00,LEARNP,DN34 5DX,KHU000041417
Department of Health,NHS North East Lincolnshire CCG,11/30/2020,C&M-PMS List Size Adjustment,PRC DELEGATED CO-COMMISSIONING,BIRKWOOD MEDICAL CENTRE,34515944,129.05,LISTAP,DN34 5DX,KHU000041417
Department of Health,NHS North East Lincolnshire CCG,11/30/2020,C&M-PMS PCN DES Participation,PRC DELEGATED CO-COMMISSIONING,BIRKWOOD MEDICAL CENTRE,34515944,"1,297.24",PARTIP,DN34 5DX,KHU000041417
Department of Health,NHS North East Lincolnshire CCG,11/30/2020,C&M-PMS QOF Aspiration,PRC DELEGATED CO-COMMISSIONING,BIRKWOOD MEDICAL CENTRE,34515944,"5,932.97",QUASPP,DN34 5DX,KHU000041417
Department of Health,NHS North East Lincolnshire CCG,11/30/2020,C&M-PMS Contract Value,PRC DELEGATED CO-COMMISSIONING,PELHAM MEDICAL CENTRE,34515946,"77,056.06",BABALP,DN31 1QZ,KHU000041419
Department of Health,NHS North East Lincolnshire CCG,11/30/2020,C&M-PMS DES Learn Dsblty Hlth Chk,PRC DELEGATED CO-COMMISSIONING,PELHAM MEDICAL CENTRE,34515946,"2,100.00",LEARNP,DN31 1QZ,KHU000041419
Department of Health,NHS North East Lincolnshire CCG,11/30/2020,C&M-PMS PCN DES Participation,PRC DELEGATED CO-COMMISSIONING,PELHAM MEDICAL CENTRE,34515946,"1,454.39",PARTIP,DN31 1QZ,KHU000041419
Department of Health,NHS North East Lincolnshire CCG,11/30/2020,C&M-PMS PCO Doctors Ret Scheme,PRC DELEGATED CO-COMMISSIONING,PELHAM MEDICAL CENTRE,34515946,"14,332.92",GPRET,DN31 1QZ,KHU000041419
Department of Health,NHS North East Lincolnshire CCG,11/30/2020,C&M-PMS PCO Locum Adop/Pat/Mat,PRC DELEGATED CO-COMMISSIONING,PELHAM MEDICAL CENTRE,34515946,"7,706.69",SICKC,DN31 1QZ,KHU000041419
Department of Health,NHS North East Lincolnshire CCG,11/30/2020,C&M-PMS PCO Other,PRC DELEGATED CO-COMMISSIONING,PELHAM MEDICAL CENTRE,34515946,596.70,CQCRP,DN31 1QZ,KHU000041419
Department of Health,NHS North East Lincolnshire CCG,11/30/2020,C&M-PMS Prem Rates,PRC DELEGATED CO-COMMISSIONING,PELHAM MEDICAL CENTRE,34515946,"1,306.00",RANDRP,DN31 1QZ,KHU000041419
Department of Health,NHS North East Lincolnshire CCG,11/30/2020,C&M-PMS QOF Aspiration,PRC DELEGATED CO-COMMISSIONING,PELHAM MEDICAL CENTRE,34515946,"7,787.74",QUASPP,DN31 1QZ,KHU000041419
Department of Health,NHS North East Lincolnshire CCG,11/30/2020,C&M-PMS Contract Value,PRC DELEGATED CO-COMMISSIONING,FIELDHOUSE MEDICAL GROUP,34519757,"96,694.49",BABALP,DN34 4GB,KHU000041393
Department of Health,NHS North East Lincolnshire CCG,11/30/2020,C&M-PMS List Size Adjustment,PRC DELEGATED CO-COMMISSIONING,FIELDHOUSE MEDICAL GROUP,34519757,714.12,LISTAP,DN34 4GB,KHU000041393
Department of Health,NHS North East Lincolnshire CCG,11/30/2020,C&M-PMS PCN DES Participation,PRC DELEGATED CO-COMMISSIONING,FIELDHOUSE MEDICAL GROUP,34519757,"1,825.05",PARTIP,DN34 4GB,KHU000041393
Department of Health,NHS North East Lincolnshire CCG,11/30/2020,C&M-PMS QOF Aspiration,PRC DELEGATED CO-COMMISSIONING,FIELDHOUSE MEDICAL GROUP,34519757,"10,036.31",QUASPP,DN34 4GB,KHU000041393
Department of Health,NHS North East Lincolnshire CCG,11/30/2020,Clinical&Medical-Independent Sector,OUT OF HOURS,CORE CARE LINKS,34531233,"111,217.35",https://nww.einvoice-prod.sbs.nhs.uk:8179/invoicepdf/16a34ff2-9773-5768-a6ff-f34515bbe592,DN34 5LP,1190
Department of Health,NHS North East Lincolnshire CCG,11/30/2020,Clinical&Medical-Independent Sector,OUT OF HOURS,CORE CARE LINKS,34531233,"9,052.75",,DN34 5LP,1190
Department of Health,NHS North East Lincolnshire CCG,11/30/2020,Clinical&Medical-Not For Profit,MENTAL HEALTH CONTRACTS,NAVIGO,34531319,"2,107,531.00",https://nww.einvoice-prod.sbs.nhs.uk:8179/invoicepdf/61d84300-da95-5280-836a-fa392b9e14d9,DN32 0QE,SALINV5922
Department of Health,NHS North East Lincolnshire CCG,11/30/2020,Clinical&Medical-Not For Profit,MENTAL HEALTH CONTRACTS,NAVIGO,34531319,"6,533.00",,DN32 0QE,SALINV5922
Department of Health,NHS North East Lincolnshire CCG,11/30/2020,Soc Care-Other Soc Care,ASC SLA/CONTRACTS,NAVIGO,34531319,"260,574.00",,DN32 0QE,SALINV5922
Department of Health,NHS North East Lincolnshire CCG,11/30/2020,Clinical&Medical-Independent Sector,COMMUNITY SERVICES,YARBOROUGH CLEE CARE LTD,34531398,"110,220.00",https://nww.einvoice-prod.sbs.nhs.uk:8179/invoicepdf/a74b9345-8cb3-5a41-84cb-97f73f35bd7e,DN34 4GB,1951
Department of Health,NHS North East Lincolnshire CCG,11/30/2020,Clinical&Medical-Independent Sector,COMMUNITY SERVICES,CARE PLUS GROUP LTD,34531401,"29,166.00",,DN32 7DH,16064
Department of Health,NHS North East Lincolnshire CCG,11/30/2020,Clinical&Medical-Not For Profit,COMMUNITY SERVICES,CARE PLUS GROUP LTD,34531401,"851,348.00",https://nww.einvoice-prod.sbs.nhs.uk:8179/invoicepdf/7eaa6868-0678-5574-a254-a46450000811,DN32 7DH,16064
Department of Health,NHS North East Lincolnshire CCG,11/30/2020,Clinical&Medical-Not For Profit,COMMUNITY SERVICES,CARE PLUS GROUP LTD,34531401,"537,402.00",,DN32 7DH,16064
Department of Health,NHS North East Lincolnshire CCG,11/30/2020,Soc Care-Other Soc Care,ASC SLA/CONTRACTS,CARE PLUS GROUP LTD,34531401,"302,064.00",,DN32 7DH,16064
Department of Health,NHS North East Lincolnshire CCG,11/30/2020,LPF Management Fees,PRIMARY CARE IT,N3I LTD,34531407,"45,604.00",https://nww.einvoice-prod.sbs.nhs.uk:8179/invoicepdf/3e95711f-270e-5cc7-92a2-53aec04bf2e1,HU3 4AE,248
Department of Health,NHS North East Lincolnshire CCG,11/30/2020,Clinical&Medical-Othe Public Sector,CHILD AND ADOLESCENT MENTAL HEALTH,NORTH EAST LINCOLNSHIRE COUNCIL,34531418,"255,645.00",,DN31 1HU,S1735533
Department of Health,NHS North East Lincolnshire CCG,11/30/2020,Clinical&Medical-Othe Public Sector,CHILDREN AND YOUNG PERSONS PALLIATIVE CARE,NORTH EAST LINCOLNSHIRE COUNCIL,34531418,"13,165.00",,DN31 1HU,S1735533
Department of Health,NHS North East Lincolnshire CCG,11/30/2020,Clinical&Medical-Othe Public Sector,COMMISSIONING - NON ACUTE,NORTH EAST LINCOLNSHIRE COUNCIL,34531418,"37,016.00",,DN31 1HU,S1735533
Department of Health,NHS North East Lincolnshire CCG,11/30/2020,C&M- PCN DES CARE HOME PREMIUM,PRC DELEGATED CO-COMMISSIONING,ROXTON PRACTICE,34540745,"3,097.50",CHOMPP,DN40 1JW,KHU000041390
Department of Health,NHS North East Lincolnshire CCG,11/30/2020,C&M-PMS Contract Value,PRC DELEGATED CO-COMMISSIONING,ROXTON PRACTICE,34540745,"252,858.52",BABALP,DN40 1JW,KHU000041390
Department of Health,NHS North East Lincolnshire CCG,11/30/2020,C&M-PMS DES Extended Hours Access,PRC DELEGATED CO-COMMISSIONING,ROXTON PRACTICE,34540745,"8,975.74",EXTHDP,DN40 1JW,KHU000041390
Department of Health,NHS North East Lincolnshire CCG,11/30/2020,C&M-PMS DES Patient Participation,PRC DELEGATED CO-COMMISSIONING,ROXTON PRACTICE,34540745,666.58,PATPAP,DN40 1JW,KHU000041390
Department of Health,NHS North East Lincolnshire CCG,11/30/2020,C&M-PMS List Size Adjustment,PRC DELEGATED CO-COMMISSIONING,ROXTON PRACTICE,34540745,"1,117.55",LISTAP,DN40 1JW,KHU000041390
Department of Health,NHS North East Lincolnshire CCG,11/30/2020,C&M-PMS PCN DES Clinical Director,PRC DELEGATED CO-COMMISSIONING,ROXTON PRACTICE,34540745,"4,469.30",CLINDP,DN40 1JW,KHU000041390
Department of Health,NHS North East Lincolnshire CCG,11/30/2020,C&M-PMS PCN DES PCN support,LOCAL ENHANCED SERVICES,ROXTON PRACTICE,34540745,"9,285.26",PCNSUP,DN40 1JW,KHU000041390
Department of Health,NHS North East Lincolnshire CCG,11/30/2020,C&M-PMS PCN DES Participation,PRC DELEGATED CO-COMMISSIONING,ROXTON PRACTICE,34540745,"4,104.83",PARTIP,DN40 1JW,KHU000041390
Department of Health,NHS North East Lincolnshire CCG,11/30/2020,C&M-PMS PCO Locum Adop/Pat/Mat,PRC DELEGATED CO-COMMISSIONING,ROXTON PRACTICE,34540745,"7,706.69",SICKC,DN40 1JW,KHU000041390
Department of Health,NHS North East Lincolnshire CCG,11/30/2020,C&M-PMS PCO Other,PRC DELEGATED CO-COMMISSIONING,ROXTON PRACTICE,34540745,"1,486.00",CQCRP,DN40 1JW,KHU000041390
Department of Health,NHS North East Lincolnshire CCG,11/30/2020,C&M-PMS Prem Rates,PRC DELEGATED CO-COMMISSIONING,ROXTON PRACTICE,34540745,"6,791.00",RANDRP,DN40 1JW,KHU000041390
Department of Health,NHS North East Lincolnshire CCG,11/30/2020,C&M-PMS QOF Aspiration,PRC DELEGATED CO-COMMISSIONING,ROXTON PRACTICE,34540745,"21,075.27",QUASPP,DN40 1JW,KHU000041390
Department of Health,NHS North East Lincolnshire CCG,11/30/2020,ME-PMS GP Pension EEs Adjs - PMS,PRC DELEGATED CO-COMMISSIONING,ROXTON PRACTICE,34540745,58.52,PENEEP,DN40 1JW,KHU000041390
Department of Health,NHS North East Lincolnshire CCG,11/30/2020,ME-PMS GP Pension ERs Adjs - PMS,PRC DELEGATED CO-COMMISSIONING,ROXTON PRACTICE,34540745,58.03,PENERP,DN40 1JW,KHU000041390
Department of Health,NHS North East Lincolnshire CCG,11/30/2020,Hcare Srv Rec NHS Trust-Contract Baseline,AMBULANCE SERVICES,EAST MIDLANDS AMBULANCE SERVICE NHS TRUST,34577559,"540,744.00",East Midlands Ambulance Service NHS Trust SLA Dec 20,NG18 4RG,5709264DEC20
Department of Health,NHS North East Lincolnshire CCG,11/30/2020,Hcare Srv Rec NHS Trust-Contract Baseline,ACUTE COMMISSIONING,HULL UNIVERSITY TEACHING HOSPITAL NHS TRUST,34577601,"800,186.00",Hull University Teaching Hospitals NHS Trust SLA Dec 20,BB3 0FG,5702853DEC20
Department of Health,NHS North East Lincolnshire CCG,11/30/2020,Hcare Srv Rec Fdtn Trust-Contract Baseline,ACUTE COMMISSIONING,NORTHERN LINCOLNSHIRE AND GOOLE HOSPITALS NHS FOUNDATION TRUST,34577606,"9,826,710.00",Northern Lincolnshire And Goole NHS Foundation Trust SLA Dec 20,DN33 2BA,527796DEC20
Department of Health,NHS North East Lincolnshire CCG,11/30/2020,Hcare Srv Rec Fdtn Trust-Contract Baseline,ACUTE COMMISSIONING,SHEFFIELD TEACHING HOSPITALS NHS FOUNDATION TRUST,34577612,"80,529.00",Sheffield Teaching Hospitals NHS Foundation Trust SLA Dec 20,S5 7AU,210286DEC20
Department of Health,NHS North East Lincolnshire CCG,11/30/2020,Hcare Srv Rec NHS Trust-Contract Baseline,ACUTE COMMISSIONING,LEEDS TEACHING HOSPITALS NHS TRUST,34577620,"46,376.00",Leeds Teaching Hospitals NHS Trust SLA Dec 20,LS9 7TF,209699DEC20
Department of Health,NHS North East Lincolnshire CCG,11/30/2020,Clinical&Medical-Othe Public Sector,CHILD AND ADOLESCENT MENTAL HEALTH,NORTH EAST LINCOLNSHIRE COUNCIL,34596866,"140,345.00",,DN31 1HU,S1727110
Department of Health,NHS North East Lincolnshire CCG,11/30/2020,Clinical&Medical-Independent Sector,ACUTE COMMISSIONING,NEW MEDICAL SYSTEMS LTD,34648421,"89,743.77",https://nww.einvoice-prod.sbs.nhs.uk:8179/invoicepdf/4ca4fb98-8fa3-5484-a06e-234c7d24ff45,SE1 6ES,00003498
Department of Health,NHS North East Lincolnshire CCG,11/30/2020,Clinical&Medical-Commercial Sector,PLANNED CARE,VIRGIN CARE EAST RIDING LLP,34671572,"100,000.00",,W4A 4GE,301626002
Department of Health,NHS North East Lincolnshire CCG,11/30/2020,C&M-GP PRACTICE REVENUE - PCTF,GP FORWARD VIEW,DR R MATHEWS,34676654,"46,989.00",Panacea (Paying Dr Mathews) Extended Access 2020/21 Monthly Monies M8,DN313AE,EXTACC21M8C
Department of Health,NHS North East Lincolnshire CCG,11/30/2020,C&M-PMS LES LTC Case Management,LOCAL ENHANCED SERVICES,HUMBERVIEW SURGERY,34676656,"32,541.25",Freshney Pelham (Paying Humberview) Enhanced Primary Care Condition Monies November 20,DN313AE,NOV20EPC1
Department of Health,NHS North East Lincolnshire CCG,11/30/2020,C&M-PMS LES LTC Case Management,LOCAL ENHANCED SERVICES,ROXTON PRACTICE,34676658,"30,916.14",Meridian (Paying Roxton) Enhanced Primary Care Condition Monies November 20,DN40 1JW,NOV20EPC2
Department of Health,NHS North East Lincolnshire CCG,11/30/2020,C&M-PMS LES LTC Case Management,LOCAL ENHANCED SERVICES,DR R MATHEWS,34676660,"78,080.06",Panacea (Paying Dr Mathews) Enhanced Primary Care Condition Monies November 20,DN313AE,NOV20EPC3
Department of Health,NHS North East Lincolnshire CCG,11/30/2020,C&M-PMS Cost of Drugs -Dispensing,LOCAL ENHANCED SERVICES,ROXTON PRACTICE,34716142,"-70,465.39","DRGREC,DRGD",DN40 1JW,KHU000041574
Department of Health,NHS North East Lincolnshire CCG,11/30/2020,C&M-PMS Prsc Chrgs Cll&Rmttd by GPs,PRC DELEGATED CO-COMMISSIONING,ROXTON PRACTICE,34716142,"-2,351.55",DRGPRX,DN40 1JW,KHU000041574
Department of Health,NHS North East Lincolnshire CCG,11/30/2020,C&M-PMS Cost of Drugs -Dispensing,LOCAL ENHANCED SERVICES,ROXTON PRACTICE,34716143,"161,825.09","DRGD,DRGADV",DN40 1JW,KHU000041575
Department of Health,NHS North East Lincolnshire CCG,11/30/2020,C&M-PMS Prof fees Dispensing,PRC DELEGATED CO-COMMISSIONING,ROXTON PRACTICE,34716143,"26,992.61",DRGDPF,DN40 1JW,KHU000041575
Department of Health,NHS North East Lincolnshire CCG,11/30/2020,C&M-PMS Prsc Chrgs Cll&Rmttd by GPs,LOCAL ENHANCED SERVICES,ROXTON PRACTICE,34716143,"2,351.55",DRGPR,DN40 1JW,KHU000041575
Department of Health,NHS North East Lincolnshire CCG,11/30/2020,Recharge : Received,PRIMARY CARE IT,TRUSTMARQUE SOLUTIONS LTD,34725361,"63,297.69",,YO41 1LZ,2305733
Department of Health,NHS North East Lincolnshire CCG,11/30/2020,Clinical&Medical-Commercial Sector,ASC PRIORITY 3 AND 4 SERVICES,KEYRING LIVING SUPPORT NETWORK,34748660,"30,540.00",,SE16 2XB,0000002512
Department of Health,NHS North East Lincolnshire CCG,11/30/2020,Clinical&Medical-Commercial Sector,ASC PRIORITY 3 AND 4 SERVICES,NORTH EAST LINCS CARELINK,34748661,"26,449.44",https://nww.einvoice-prod.sbs.nhs.uk:8179/invoicepdf/cd57aa64-8988-56c4-aa5f-b20de67bb773,DN33 1NU,55706
